Workbook

Sheet Sheet1
A1: INSTRUCTIONS: Use this form when a single information collection document involves multiple reporting and recordkeeping requirements. The totals of the figures in cols. should be entered in item 13 of OMB-83-I: cols. (D) &/or (I) = 13a (respondent is only counted once); cols. F & I = 13b; cols. H & K = 13c. (F)Total/(D)Total = (E)Average (H)Total/(F)Total = (G)Average (K)Total/(I)Total = (J)Average NOTE: The columns will calculate automatically. If Col. E's response is something other than annually, i.e., 1/6 years, list as "1/6" & decimal will display. | I1: TITLE OF INFORMATION COLLECTION DOCUMENT | O1: OMB NO.
O2: 0560-0309
I3: Emergency Relief Program Phase 2 (ERP Phase 2)
O4: DATE PREPARED
O5: 2022-12-21
A10: IDENTIFICATION OF REPORTING OR RECORDKEEPING REQUIREMENT | H10: ANNUAL BURDEN
H12: REPORTS | N12: RECORDS | Q12: RESPONDENT COST
L14: TOTAL BURDEN HOURS | P14: TOTAL
G15: FORMS NO (S) | H15: NO. OF | I15: NO OF | J15: TOTAL ANNUAL | K15: HOURS | L15: (Col. F x G) | N15: NO. OF | O15: ANNUAL | P15: RECORD- | Q15: COST | R15: TOTAL
A16: SECTION OF | B16: DESCRIPTION | G16: (If "none" | H16: RESPONDENTS | I16: RESPONSES | J16: RESPONSES | K16: PER | L16: (H) | N16: RECORD- | O16: HOURS PER | P16: KEEPING HOURS | Q16: PER | R16: COST
A17: REGS. | G17: so state) | I17: PER | J17: (Col. D x E) | K17: RESPONSE | N17: KEEPERS | O17: RECORD- | P17: (Col. I x J) | Q17: HOUR | R17: (Col. H x L)
I18: RESPONDENT | L18: EXEMPT | M18: NON-EXEMPT | O18: KEEPER
A19: (A) | B19: (B) | G19: (C) | H19: (D) | I19: (E) | J19: (F) | K19: (G) | N19: (I) | O19: (J) | P19: (K) | Q19: (L) | R19: (M)
A20: 7 CFR 760, subpart S | B20: Emergency Relief Program Phase 2 (ERP Phase 2) Application | G20: FSA-521 | H20: 48,402 | I20: 1 | J20: =SUM(H20*I20) -> 48,402 | K20: 1.00 | M20: =SUM(J20*K20) -> 48,402 | Q20: $50.38 | R20: =SUM(M20*Q20) -> 2,438,493
A21: 7 CFR part 1400 | B21: Farm Operating Plan for an Individual (Parts A & B) | G21: CCC-902I | H21: =H20*0.4 -> 19,361 | I21: 1 | J21: 19,361 | K21: =5/60 -> 0.08 | M21: 1,613 | Q21: $50.38 | R21: 81,283
A22: 7 CFR part 1400 | B22: Farm Operating Plan for an Entity (Parts A & B) | G22: CCC-902E | H22: =H20*0.4 -> 19,361 | I22: 1 | J22: 19,361 | K22: =5/60 -> 0.08 | M22: 1,613 | Q22: $50.38 | R22: 81,283
A23: 7 CFR 760, subpart S | B23: Request for An Exception to the $125,000 Payment Limitation for Certain Programs | G23: FSA-510 | H23: =H20*0.03 -> 1,452 | I23: 1 | J23: 1,452 | K23: 0.08 | M23: 116 | Q23: $50.38 | R23: 5,852
A24: 7 CFR part 1400 | B24: Member Information for Legal Entities, if applicable | G24: CCC-901 | H24: =H20*0.05 -> 2,420 | I24: 1 | J24: 2,420 | K24: =5/60 -> 0.08 | M24: 202 | Q24: $50.38 | R24: 10,160
A25: 7 CFR part 2 | B25: Highly Erodible Land Conservation (HELC) and Wetland Conservation Certification (exempt from PRA 16 U.S.C. 3846) | G25: AD-1026 | H25: =H20*0.005 -> 242 | I25: 1 | J25: 242 | K25: =5/60 -> 0.08 | M25: 20 | Q25: $50.38 | R25: 1,016
A26: 7 CFR 760, subpart S | B26: Emergency Relief Program Phase 2 (ERP Phase 2) Allowable Revenue Worksheet | G26: FSA-521A | H26: =H20*0.05 -> 2,420 | I26: 1 | J26: 2,420 | K26: 1.00 | M26: 2,420 | Q26: $50.38 | R26: 121,925
A27: 7 CFR 760, subpart S | B27: Socially disadvantage, Limited Resource, Beginning and Veteran Farmer or Rancher Certification | G27: FSA-860 | H27: =H20*0.1 -> 4,840 | I27: 1 | J27: 4,840 | K27: 0.10 | M27: 484 | Q27: $50.38 | R27: 24,385
A28: 7 CFR 760, subpart S | B28: Customer Data Worksheet | G28: AD-2047 | H28: =H20*0.05 -> 2,420 | I28: 1 | J28: 2,420 | K28: 0.05 | M28: 121 | Q28: $50.38 | R28: =SUM(M28*Q28) -> 6,096
A29: 7 CFR 760, subpart S | B29: Crop Insurance and/or NAP Coverage Agreement | G29: FSA-522 | H29: 48,402 | I29: 1 | J29: 48,402 | K29: =10/60 -> 0.17 | M29: 8,067 | Q29: $50.38 | R29: =SUM(M29*Q29) -> 406,415
B32: SUBTOTAL | J32: =SUM(J20:J28) -> 100,918 | L32: =SUM(L20:L25) -> 0 | M32: =SUM(M20:M28) -> 54,992 | P32: =SUM(P20:P31) -> 0.00 | R32: =SUM(R20:R31) -> 3,176,909
B33: TOTAL OF ALL PAGES | J33: =SUM(J32) -> 100,918 | L33: =SUM(L32) -> 0 | M33: =SUM(M32) -> 54,992 | P33: =SUM(P32) -> 0.00 | R33: =SUM(R32) -> 3,176,909
A34: TOTAL - COLUMNS "F" AND "I" = OMB 83-I, 13b; COLUMNS "H" AND "K" = OMB 83-I, 13c | J34: =SUM(J33+N33) -> 100,918 | M34: =SUM(M33+P33) -> 54,992
J35: =J34/H20 -> 2.085 | M35: =M34/J34 -> 0.5449160671
A42: Est Respondents | B42: =H20 -> 48,402
A43: Resp/Respondent | B43: =J35 -> 2.0850
A44: Est Total Resp | B44: =B42*B43 -> 100918
A45: Avg Time/Resp | B45: =M35 -> 0.54492
A46: Est Total Burden | B46: =B44*B45 -> 54992
G60: 235426 | H60: 53.71 | I60: =G60*H60 -> 12644730.46
